Workbook

Sheet Sheet1
A1: USDA - RUS | C1: Title of Information Document | I1: OMB No.
C2: Water and Waste Loan and Grant Program | J2: 0572-0121
A3: SUMMARY OF INFORMATION COLLECTION | C3: 7 CFR 1780 | I3: Date Prepared
I4: 10/27/11 rev
A5: INSTRUCTIONS: | E5: > | F5: (f) TOTAL | H5: (h) TOTAL | J5: (k) TOTAL
A6: Use this form when a single information collection document involves multiple reporting and | E6: > | F6: - | G6: = (e) Average | H6: - | I6: = (g) Average | J6: - | K6: = (j) Average
A7: recordkeeping requirements. | E7: > | F7: (d) TOTAL | H7: (f) TOTAL | J7: (i) TOTAL
A8: IDENTIFICATION OF REPORTING AND RECORDKEEPPING REQUIREMENTS | G8: ANNUAL BURDEN
C9: FORM | F9: REPORTS | J9: RECORDS
C10: NO(s) | D10: NO. OF | E10: NO. OF | F10: TOTAL | G10: HOURS | H10: TOTAL | I10: NO. OF | J10: ANNUAL | K10: TOTAL
A11: SECTION OF | C11: (If "none" | D11: RESPON- | E11: RESPONSES | F11: ANNUAL | G11: PER | H11: HOURS | I11: RECORD- | J11: HOURS PER | K11: RECORD-
A12: REGULATIONS | B12: DESCRIPTION | C12: so state) | D12: DENTS | E12: PER | F12: RESPONSES | G12: RESPONSE | H12: (Col. f & g) | I12: KEEPERS | J12: RECORD- | K12: KEEPING
E13: RESPON- | F13: (Col. d & e) | J13: KEEPER | K13: HOURS
E14: DENT | K14: (Col. i & j)
A15: (a) | B15: (b) | C15: (c) | D15: (d) | E15: (e) | F15: (f) | G15: (g) | H15: (h) | I15: (i) | J15: (j) | K15: (k)
B16: NON-FORM BURDEN
A17: 1780.1(f) | B17: Relationship or association with RUS employees | C17: Written | D17: 829 | E17: 1 | F17: =SUM(D17*E17) -> 829 | G17: 0.25 | H17: =SUM(F17*G17) -> 207
B18: 7 CFR 1777-Colonias (0572-0109) | D18: 19 | E18: 1 | F18: =D18*E18 -> 19 | G18: 0.25 | H18: =F18*G18 -> 5
B19: 7 CFR 1778-ECWAG (0572-0110) | D19: 4 | E19: 1 | F19: =D19*E19 -> 4 | G19: 0.25 | H19: =F19*G19 -> 1
A21: 1780.7(d) | B21: Statement on availability to obtain credit elsewhere | C21: Written | D21: 829 | E21: 1 | F21: =SUM(D21*E21) -> 829 | G21: 1.00 | H21: =SUM(F21*G21) -> 829
B22: 7 CFR 1777-Colonias | D22: 19 | E22: 1 | F22: =D22*E22 -> 19 | G22: 1.00 | H22: =F22*G22 -> 19
B23: 7 CFR 1778-ECWAG | D23: 4 | E23: 1 | F23: =D23*E23 -> 4 | G23: 1.00 | H23: =F23*G23 -> 4
A25: 1780.11(a)(2) | B25: Notification of service statement | C25: Written | D25: 211 | E25: 1 | F25: =SUM(D25*E25) -> 211 | G25: 2.00 | H25: =SUM(F25*G25) -> 422
B26: 7 CFR 1777-Colonias | D26: 6 | E26: 1 | F26: =D26*E26 -> 6 | G26: 2.00 | H26: =F26*G26 -> 12
B27: 7 CFR 1778-ECWAG | D27: 1 | E27: 1 | F27: =D27*E27 -> 1 | G27: 2.00 | H27: =F27*G27 -> 2
A29: 1780.14(a)(3) & (b)(2) | B29: Liens on real and chattel property | C29: Written | D29: 167 | E29: 1 | F29: =SUM(D29*E29) -> 167 | G29: 1.00 | H29: =SUM(F29*G29) -> 167
B30: 7 CFR 1777-Colonias | D30: 5 | E30: 1 | F30: =D30*E30 -> 5 | G30: 1.00 | H30: =F30*G30 -> 5
B31: 7 CFR 1778-ECWAG | D31: 1 | E31: 1 | F31: =D31*E31 -> 1 | G31: 1.00 | H31: =F31*G31 -> 1
A33: 1780.14(b)(2) | B33: Financing Statement | C33: Written | D33: 211 | E33: 1 | F33: =SUM(D33*E33) -> 211 | G33: 1.00 | H33: =SUM(F33*G33) -> 211
B34: 7 CFR 1777-Colonias | D34: 6 | E34: 1 | F34: =D34*E34 -> 6 | G34: 1.00 | H34: =F34*G34 -> 6
B35: 7 CFR 1778-ECWAG | D35: 1 | E35: 1 | F35: =D35*E35 -> 1 | G35: 1.00 | H35: =F35*G35 -> 1
A37: 1780.19 | B37: Public Information | C37: Written | D37: 707 | E37: 1 | F37: =SUM(D37*E37) -> 707 | G37: 2.00 | H37: =SUM(F37*G37) -> 1,414
B38: 7 CFR 1777-Colonias | D38: 19 | E38: 1 | F38: =D38*E38 -> 19 | G38: 2.00 | H38: =F38*G38 -> 38
B39: 7 CFR 1778-ECWAG | D39: 4 | E39: 1 | F39: =D39*E39 -> 4 | G39: 2.00 | H39: =F39*G39 -> 8
B40: SUBTOTAL | F40: =SUM(F17:F39) -> 3,043 | H40: =SUM(H17:H39) -> 3,352 | I40: =SUM(I17:I39) -> 0.00 | K40: =SUM(K17:K39) -> 0.00
B41: TOTAL OF ALL PAGES | F41: =SUM(F40,F71,F100,F129,F154,F182) -> 36,678 | H41: =SUM(H40,H71,H100,H129,H154,H182) -> 104,701 | I41: =SUM(I182) -> 14,000 | K41: =SUM(K182) -> 1,120
A42: TOTAL - Columns "F" and "I" = OMB 83I, 13 b; Columns "H" and "K" = OMB 83I, 13c | F42: =SUM(F41,I41) -> 50,678 | H42: =SUM(H41,K41) -> 105,821
A43: 1780.33(b) | B43: Intergovernmental comments | C43: Written | D43: 707 | E43: 1 | F43: =SUM(D43*E43) -> 707 | G43: 1.00 | H43: =SUM(F43*G43) -> 707
B44: 7 CFR 1777-Colonias | D44: 19 | E44: 1 | F44: =D44*E44 -> 19 | G44: 1.00 | H44: =F44*G44 -> 19
B45: 7 CFR 1778-ECWAG | D45: 4 | E45: 1 | F45: =D45*E45 -> 4 | G45: 1.00 | H45: =F45*G45 -> 4
A47: 1780.33(c) | B47: Preliminary engineering report | C47: Written | D47: 707 | E47: 1 | F47: =SUM(D47*E47) -> 707 | G47: 4.00 | H47: =SUM(F47*G47) -> 2,828
B48: 7 CFR 1777-Colonias | D48: 19 | E48: 1 | F48: =D48*E48 -> 19 | G48: 4.00 | H48: =F48*G48 -> 76
B49: 7 CFR 1778-ECWAG | D49: 4 | E49: 1 | F49: =D49*E49 -> 4 | G49: 4.00 | H49: =F49*G49 -> 16
A51: 1780.33(e) | B51: Supporting documentation | C51: Written | D51: 707 | E51: 1 | F51: =SUM(D51*E51) -> 707 | G51: 6.00 | H51: =SUM(F51*G51) -> 4,242
B52: 7 CFR 1777-Colonias | D52: 19 | E52: 1 | F52: =D52*E52 -> 19 | G52: 6.00 | H52: =F52*G52 -> 114
B53: 7 CFR 1778-ECWAG | D53: 4 | E53: 1 | F53: =D53*E53 -> 4 | G53: 6.00 | H53: =F53*G53 -> 24
A55: 1780.33(h)(5) | B55: Certification Regarding Debarment | C55: AD-1047 | D55: 707 | E55: 1 | F55: =SUM(D55*E55) -> 707 | G55: 0.25 | H55: =SUM(F55*G55) -> 177
B56: 7 CFR 1777-Colonias | D56: 19 | E56: 1 | F56: =D56*E56 -> 19 | G56: 0.25 | H56: =F56*G56 -> 5
B57: 7 CFR 1778-ECWAG | D57: 4 | E57: 1 | F57: =D57*E57 -> 4 | G57: 0.25 | H57: =F57*G57 -> 1
A59: 1780.33(h)(6) | B59: Certification Regarding Drug-Free Workplace | C59: AD-1049 | D59: 707 | E59: 1 | F59: =SUM(D59*E59) -> 707 | G59: 0.25 | H59: =SUM(F59*G59) -> 177
B60: 7 CFR 1777-Colonias | D60: 19 | E60: 1 | F60: =D60*E60 -> 19 | G60: 0.25 | H60: =F60*G60 -> 5
B61: 7 CFR 1778-ECWAG | D61: 4 | E61: 1 | F61: =D61*E61 -> 4 | G61: 0.25 | H61: =F61*G61 -> 1
A63: 1780.39(b)(1) and (2) | B63: Agreements for professional services | C63: Written | D63: 707 | E63: 1 | F63: =SUM(D63*E63) -> 707 | G63: 4.00 | H63: =SUM(F63*G63) -> 2,828
B64: 7 CFR 1777-Colonias | D64: 19 | E64: 1 | F64: =D64*E64 -> 19 | G64: 4.00 | H64: =F64*G64 -> 76
B65: 7 CFR 1778-ECWAG | D65: 4 | E65: 1 | F65: =D65*E65 -> 4 | G65: 4.00 | H65: =F65*G65 -> 16
A67: 1780.39(b)(4) | B67: Contracts for other services | C67: Written | D67: 707 | E67: 1 | F67: =SUM(D67*E67) -> 707 | G67: 2.00 | H67: =SUM(F67*G67) -> 1,414
B68: 7 CFR 1777-Colonias | D68: 19 | E68: 1 | F68: =D68*E68 -> 19 | G68: 2.00 | H68: =F68*G68 -> 38
B69: 7 CFR 1778-ECWAG | D69: 4 | E69: 1 | F69: =D69*E69 -> 4 | G69: 2.00 | H69: =F69*G69 -> 8
B71: SUBTOTAL | F71: =SUM(F43:F69) -> 5,110 | H71: =SUM(H43:H69) -> 12,775
A72: 1780.39(c)(5)(i) | B72: Positive programs to encourage connections | C72: Written | D72: 89 | E72: 1 | F72: =SUM(D72*E72) -> 89 | G72: 3.00 | H72: =SUM(F72*G72) -> 267
B73: 7 CFR 1777-Colonias | D73: 7 | E73: 1 | F73: =D73*E73 -> 7 | G73: 3.00 | H73: =F73*G73 -> 21
B74: 7 CFR 1778-ECWAG | D74: 4 | E74: 1 | F74: =D74*E74 -> 4 | G74: 3.00 | H74: =F74*G74 -> 12
A76: 1780.39(c)(3) | B76: User agreement | C76: Written | D76: 89 | E76: 1 | F76: =SUM(D76*E76) -> 89 | G76: 4.00 | H76: =SUM(F76*G76) -> 356
B77: 7 CFR 1777-Colonias | D77: 7 | E77: 1 | F77: =D77*E77 -> 7 | G77: 4.00 | H77: =F77*G77 -> 28
B78: 7 CFR 1778-ECWAG | D78: 4 | E78: 1 | F78: =D78*E78 -> 4 | G78: 4.00 | H78: =F78*G78 -> 16
A80: 1780.39(d) | B80: Interim financing | C80: Written | D80: 600 | E80: 1 | F80: =SUM(D80*E80) -> 600 | G80: 4.00 | H80: =SUM(F80*G80) -> 2,400
B81: 7 CFR 1777-Colonias | D81: 0 | E81: 1 | F81: =D81*E81 -> 0 | G81: 4.00 | H81: =F81*G81 -> 0
B82: 7 CFR 1778-ECWAG | D82: 0 | E82: 1 | F82: =D82*E82 -> 0 | G82: 4.00 | H82: =F82*G82 -> 0
A84: 1780.39(g)(3) | B84: Fidelity or employee dishonesty Bond | C84: Written | D84: 707 | E84: 1 | F84: =SUM(D84*E84) -> 707 | G84: 4.00 | H84: =SUM(F84*G84) -> 2,828
B85: 7 CFR 1777-Colonias | D85: 19 | E85: 1 | F85: =D85*E85 -> 19 | G85: 4.00 | H85: =F85*G85 -> 76
B86: 7 CFR 1778-ECWAG | D86: 4 | E86: 1 | F86: =D86*E86 -> 4 | G86: 4.00 | H86: =F86*G86 -> 16
A88: 1780.39(g)(4) | B88: Property insurance | C88: Written | D88: 707 | E88: 1 | F88: =SUM(D88*E88) -> 707 | G88: 1.00 | H88: =SUM(F88*G88) -> 707
B89: 7 CFR 1777-Colonias | D89: 19 | E89: 1 | F89: =D89*E89 -> 19 | G89: 1.00 | H89: =F89*G89 -> 19
B90: 7 CFR 1778-ECWAG | D90: 4 | E90: 1 | F90: =D90*E90 -> 4 | G90: 1.00 | H90: =F90*G90 -> 4
A92: 1780.39(g)(5) | B92: General Liability Insurance | C92: Written | D92: 707 | E92: 1 | F92: =SUM(D92*E92) -> 707 | G92: 1.00 | H92: =SUM(F92*G92) -> 707
B93: 7 CFR 1777-Colonias | D93: 19 | E93: 1 | F93: =D93*E93 -> 19 | G93: 1.00 | H93: =F93*G93 -> 19
B94: 7 CFR 1778-ECWAG | D94: 4 | E94: 1 | F94: =D94*E94 -> 4 | G94: 1.00 | H94: =F94*G94 -> 4
A96: 1780.39(g)(6) | B96: Flood Insurance | C96: Written | D96: 89 | E96: 1 | F96: =SUM(D96*E96) -> 89 | G96: 1.00 | H96: =SUM(F96*G96) -> 89
B97: 7 CFR 1777-Colonias | D97: 5 | E97: 1 | F97: =D97*E97 -> 5 | G97: 1.00 | H97: =F97*G97 -> 5
B98: 7 CFR 1778-ECWAG | D98: 1 | E98: 1 | F98: =D98*E98 -> 1 | G98: 1.00 | H98: =F98*G98 -> 1
B100: SUBTOTAL | F100: =SUM(F72:F98) -> 3,085 | H100: =SUM(H72:H98) -> 7,575
A101: 1780.39(g)7) | B101: Workman's compensation insurance | C101: Written | D101: 707 | E101: 1 | F101: =SUM(D101*E101) -> 707 | G101: 0.50 | H101: =SUM(F101*G101) -> 354
B102: 7 CFR 1777-Colonias | D102: 19 | E102: 1 | F102: =D102*E102 -> 19 | G102: 0.50 | H102: =F102*G102 -> 10
B103: 7 CFR 1778-ECWAG | D103: 4 | E103: 1 | F103: =D103*E103 -> 4 | G103: 0.50 | H103: =F103*G103 -> 2
A105: 1780.44(f) | B105: Evidence of other funds | C105: Written | D105: 250 | E105: 1 | F105: =SUM(D105*E105) -> 250 | G105: 1.00 | H105: =SUM(F105*G105) -> 250
B106: 7 CFR 1777-Colonias | D106: 15 | E106: 1 | F106: =D106*E106 -> 15 | G106: 1.00 | H106: =F106*G106 -> 15
B107: 7 CFR 1778-ECWAG | D107: 4 | E107: 1 | F107: =D107*E107 -> 4 | G107: 1.00 | H107: =F107*G107 -> 4
A109: 1780.44(g)(3) | B109: Water rights | C109: Written | D109: 100 | E109: 1 | F109: 100 | G109: 3.00 | H109: =SUM(F109*G109) -> 300
B110: 7 CFR 1777-Colonias | D110: 7 | E110: 1 | F110: =D110*E110 -> 7 | G110: 3.00 | H110: =F110*G110 -> 21
B111: 7 CFR 1778-ECWAG | D111: 1 | E111: 1 | F111: =D111*E111 -> 1 | G111: 3.00 | H111: =F111*G111 -> 3
A113: 1780.44(g) | B113: Appraisal Report | C113: Written | D113: 42 | E113: 1 | F113: =SUM(D113*E113) -> 42 | G113: 2.00 | H113: =SUM(F113*G113) -> 84
B114: 7 CFR 1777-Colonias | D114: 3 | E114: 1 | F114: =D114*E114 -> 3 | G114: 1.00 | H114: =F114*G114 -> 3
B115: 7 CFR 1778-ECWAG | D115: 1 | E115: 1 | F115: =D115*E115 -> 1 | G115: 1.00 | H115: =F115*G115 -> 1
A117: 1780.44(g)(1)(ii) | B117: User Connections | C117: Written | D117: 25 | E117: 1 | F117: =SUM(D117*E117) -> 25 | G117: 3.00 | H117: =SUM(F117*G117) -> 75
B118: 7 CFR 1777-Colonias | D118: 2 | E118: 1 | F118: =D118*E118 -> 2 | G118: 1.00 | H118: =F118*G118 -> 2
B119: 7 CFR 1778-ECWAG | D119: 3 | E119: 1 | F119: =D119*E119 -> 3 | G119: 1.00 | H119: =F119*G119 -> 3
A121: 1780.44(g)(4) | B121: Lease agreement | C121: Written | D121: 42 | E121: 1 | F121: =SUM(D121*E121) -> 42 | G121: 5.00 | H121: =SUM(F121*G121) -> 210
B122: 7 CFR 1777-Colonias | D122: 3 | E122: 1 | F122: =D122*E122 -> 3 | G122: 5.00 | H122: =F122*G122 -> 15
B123: 7 CFR 1778-ECWAG | D123: 5 | E123: 1 | F123: =D123*E123 -> 5 | G123: 5.00 | H123: =F123*G123 -> 25
A125: 1780.45(a) | B125: Notes, bonds, warrants or other contractural obligations | C125: Written | D125: 707 | E125: 1 | F125: =SUM(D125*E125) -> 707 | G125: 5.00 | H125: =SUM(F125*G125) -> 3,535
B126: 7 CFR 1777-Colonias | D126: 0 | E126: 1 | F126: =D126*E126 -> 0 | G126: 5.00 | H126: =F126*G126 -> 0
B127: 7 CFR 1778-ECWAG | D127: 0 | E127: 1 | F127: =D127*E127 -> 0 | G127: 5.00 | H127: =F127*G127 -> 0
B129: SUBTOTAL | F129: =SUM(F101:F127) -> 1,940 | H129: =SUM(H101:H127) -> 4,911
A130: 1780.45(a)(2) | B130: Loan Resolution (Public Bodies) | C130: RUS Bulletin 1780-27 | D130: 591 | E130: 1 | F130: =SUM(D130*E130) -> 591 | G130: 1.00 | H130: =SUM(F130*G130) -> 591
B131: 7 CFR 1777-Colonias | D131: 0 | E131: 1 | F131: =D131*E131 -> 0 | G131: 1.00 | H131: =F131*G131 -> 0
B132: 7 CFR 1778-ECWAG | D132: 0 | E132: 1 | F132: =D132*E132 -> 0 | G132: 1.00 | H132: =F132*G132 -> 0
A134: 1780.45(a)(2) | B134: Loan Resolution, Security Agreement | C134: RUS Bulletin 1780-28 | D134: 116 | E134: 1 | F134: =SUM(D134*E134) -> 116 | G134: 1.00 | H134: =SUM(F134*G134) -> 116
B135: 7 CFR 1777-Colonias | D135: 0 | E135: 1 | F135: =D135*E135 -> 0 | G135: 1.00 | H135: =F135*G135 -> 0
B136: 7 CFR 1778-ECWAG | D136: 0 | E136: 1 | F136: =D136*E136 -> 0 | G136: 1.00 | H136: =F136*G136 -> 0
A138: 1780.45(c) | B138: Grant Agreement | C138: RUS Bulletin 1780-12 | D138: 353 | E138: 1 | F138: =SUM(D138*E138) -> 353 | G138: 1.00 | H138: =SUM(F138*G138) -> 353
B139: 7 CFR 1777-Colonias | D139: 19 | E139: 1 | F139: =D139*E139 -> 19 | G139: 1.00 | H139: =F139*G139 -> 19
B140: 7 CFR 1778-ECWAG | D140: 4 | E140: 1 | F140: =D140*E140 -> 4 | G140: 1.00 | H140: =F140*G140 -> 4
B141: Rural Alaska Village Grants | C141: Written | D141: 10 | F141: 10 | H141: 10
A143: 1780.47(d) | B143: Audits | C143: Written | D143: 3,288 | E143: 1 | F143: =SUM(D143*E143) -> 3,288 | G143: 8.00 | H143: =SUM(F143*G143) -> 26,304
B144: 7 CFR 1777-Colonias | D144: 19 | E144: 1 | F144: =D144*E144 -> 19 | G144: 8.00 | H144: =F144*G144 -> 152
B145: 7 CFR 1778-ECWAG | D145: 4 | E145: 1 | F145: =D145*E145 -> 4 | G145: 8.00 | H145: =F145*G145 -> 32
A147: 1780.47(f) | B147: Management report | C147: Written | D147: 707 | E147: 4 | F147: =SUM(D147*E147) -> 2,828 | G147: 8.00 | H147: =SUM(F147*G147) -> 22,624
B148: 7 CFR 1777-Colonias | D148: 19 | E148: 4 | F148: =D148*E148 -> 76 | G148: 8.00 | H148: =F148*G148 -> 608
B149: 7 CFR 1778-ECWAG | D149: 4 | E149: 4 | F149: =D149*E149 -> 16 | G149: 8.00 | H149: =F149*G149 -> 128
A151: 1780.61 | B151: Construction contract forms | C151: Written | D151: 707 | E151: 1 | F151: =SUM(D151*E151) -> 707 | G151: 3.00 | H151: =SUM(F151*G151) -> 2,121
B152: 7 CFR 1777-Colonias | D152: 19 | E152: 1 | F152: =D152*E152 -> 19 | G152: 3.00 | H152: =F152*G152 -> 57
B153: 7 CFR 1778-ECWAG | D153: 4 | E153: 1 | F153: =D153*E153 -> 4 | G153: 3.00 | H153: =F153*G153 -> 12
B154: SUBTOTAL | F154: =SUM(F130:F153) -> 8,054 | H154: =SUM(H130:H153) -> 53,131
A155: 1780.61(b) | B155: Borrower attorney's certification of construction contract | C155: Written | D155: 707 | E155: 1 | F155: =SUM(D155*E155) -> 707 | G155: 15.00 | H155: =SUM(F155*G155) -> 10,605
B156: 7 CFR 1777-Colonias | D156: 19 | E156: 1 | F156: =D156*E156 -> 19 | G156: 15.00 | H156: =F156*G156 -> 285
B157: 7 CFR 1778-ECWAG | D157: 4 | E157: 1 | F157: =D157*E157 -> 4 | G157: 15.00 | H157: =F157*G157 -> 60
A159: 1780.63 | B159: Sewage treatment and bulk water sales contracts | C159: Written | D159: 89 | E159: 1 | F159: =SUM(D159*E159) -> 89 | G159: 3.00 | H159: =SUM(F159*G159) -> 267
B160: 7 CFR 1777-Colonias | D160: 6 | E160: 1 | F160: =D160*E160 -> 6 | G160: 3.00 | H160: =F160*G160 -> 18
B161: 7 CFR 1778-ECWAG | D161: 0 | E161: 1 | F161: =D161*E161 -> 0 | G161: 3.00 | H161: =F161*G161 -> 0
A163: 1780.74 | B163: Contracts awarded prior to application | C163: Written | D163: 20 | E163: 1 | F163: =SUM(D163*E163) -> 20 | G163: 2.00 | H163: =SUM(F163*G163) -> 40
B164: 7 CFR 1777-Colonias | D164: 1 | E164: 1 | F164: =D164*E164 -> 1 | G164: 2.00 | H164: =F164*G164 -> 2
B165: 7 CFR 1778-ECWAG | D165: 0 | E165: 1 | F165: =D165*E165 -> 0 | G165: 2.00 | H165: =F165*G165 -> 0
A167: 1780.76(b) | B167: Monitoring construction | C167: Written | D167: 707 | E167: 1 | F167: =SUM(D167*E167) -> 707 | G167: 5.00 | H167: =SUM(F167*G167) -> 3,535
B168: 7 CFR 1777-Colonias | D168: 19 | E168: 1 | F168: =D168*E168 -> 19 | G168: 5.00 | H168: =F168*G168 -> 95
B169: 7 CFR 1778-ECWAG | D169: 4 | E169: 1 | F169: =D169*E169 -> 4 | G169: 5.00 | H169: =F169*G169 -> 20
A171: 1780.76(c) | B171: Resident Inspector resume | C171: Written | D171: 707 | E171: 1 | F171: =SUM(D171*E171) -> 707 | G171: 2.00 | H171: =SUM(F171*G171) -> 1,414
B172: 7 CFR 1777-Colonias | D172: 19 | E172: 1 | F172: =D172*E172 -> 19 | G172: 2.00 | H172: =F172*G172 -> 38
B173: 7 CFR 1778-ECWAG | D173: 4 | E173: 1 | F173: =D173*E173 -> 4 | G173: 2.00 | H173: =F173*G173 -> 8
A175: 1780.76(d) | B175: Daily inspection report | C175: Written | D175: 707 | E175: 18 | F175: =SUM(D175*E175) -> 12,726 | G175: 0.50 | H175: =SUM(F175*G175) -> 6,363
B176: 7 CFR 1777-Colonias | D176: 19 | E176: 18 | F176: =D176*E176 -> 342 | G176: 0.50 | H176: =F176*G176 -> 171
B177: 7 CFR 1778-ECWAG | D177: 4 | E177: 18 | F177: =D177*E177 -> 72 | G177: 0.50 | H177: =F177*G177 -> 36
A179: 1780.37(b) | B179: Borrower shall maintain accounting records for 3 years | I179: 7,000 | J179: 0.08 | K179: =SUM(I179*J179) -> 560
B180: Contractor required records | I180: 7,000 | J180: 0.08 | K180: =SUM(I180*J180) -> 560
B182: SUBTOTAL | F182: =SUM(F155:F179) -> 15,446 | H182: =SUM(H155:H179) -> 22,957 | I182: =SUM(I155:I181) -> 14,000 | K182: =SUM(K155:K181) -> 1,120
B183: FORMS APPROVED UNDER OTHER OMB NUMBERS
A184: 1780.44(g)(2) | B184: Preliminary Title Opinion | C184: RD 1927-9 | D184: 707 | E184: 1 | F184: =SUM(D184*E184) -> 707 | G184: 1.50 | H184: =SUM(F184*G184) -> 1,061
B185: 7 CFR 1777-Colonias | C185: (0575-0147) | D185: 19 | E185: 1 | F185: =SUM(D185*E185) -> 19 | G185: 1.50 | H185: =SUM(F185*G185) -> 29
B186: 7 CFR 1778-ECWAG | D186: 4 | E186: 1 | F186: =SUM(D186*E186) -> 4 | G186: 1.50 | H186: =SUM(F186*G186) -> 6
A188: 1780.44(g)(2) | B188: Final Title Opinion | C188: RD 1927-10 | D188: 707 | E188: 1 | F188: =SUM(D188*E188) -> 707 | G188: 0.34 | H188: =SUM(F188*G188) -> 240
B189: 7 CFR 1777-Colonias | C189: (0575-0147) | D189: 19 | E189: 1 | F189: =SUM(D189*E189) -> 19 | G189: 0.34 | H189: =SUM(F189*G189) -> 6
B190: 7 CFR 1778-ECWAG | D190: 4 | E190: 1 | F190: =SUM(D190*E190) -> 4 | G190: 0.34 | H190: =SUM(F190*G190) -> 1
A192: 1780.76(e) | B192: Partial Payment Estimate | C192: RD 1924-18 | D192: 707 | E192: 1 | F192: =SUM(D192*E192) -> 707 | G192: 0.50 | H192: =SUM(F192*G192) -> 354
B193: 7 CFR 1777-Colonias | C193: (0575-0042) | D193: 19 | E193: 1 | F193: =SUM(D193*E193) -> 19 | G193: 0.50 | H193: =SUM(F193*G193) -> 10
B194: 7 CFR 1778-ECWAG | D194: 4 | E194: 1 | F194: =SUM(D194*E194) -> 4 | G194: 0.50 | H194: =SUM(F194*G194) -> 2
A196: 1780.76(h)(2) | B196: Contract Change Order | C196: RD 1924-7 | D196: 707 | E196: 1 | F196: =SUM(D196*E196) -> 707 | G196: 0.25 | H196: =SUM(F196*G196) -> 177
B197: 7 CFR 1777-Colonias | C197: (0575-0042) | D197: 19 | E197: 1 | F197: =SUM(D197*E197) -> 19 | G197: 0.25 | H197: =SUM(F197*G197) -> 5
B198: 7 CFR 1778-ECWAG | D198: 4 | E198: 1 | F198: =SUM(D198*E198) -> 4 | G198: 0.25 | H198: =SUM(F198*G198) -> 1
A200: 1780.33(h)(3) | B200: Equal Opportunity Agreement | C200: RD 400-1 | D200: 707 | E200: 1 | F200: =SUM(D200*E200) -> 707 | G200: 0.08 | H200: =SUM(F200*G200) -> 57
B201: 7 CFR 1777-Colonias | C201: (0575-0018) | D201: 19 | E201: 1 | F201: =SUM(D201*E201) -> 19 | G201: 0.08 | H201: =SUM(F201*G201) -> 2
B202: 7 CFR 1778-ECWAG | D202: 4 | E202: 1 | F202: =SUM(D202*E202) -> 4 | G202: 0.08 | H202: =SUM(F202*G202) -> 0
A204: 1780.33(h)(4) | B204: Assurance Agreement | C204: RD 400-4 | D204: 707 | E204: 1 | F204: =SUM(D204*E204) -> 707 | G204: 0.25 | H204: =SUM(F204*G204) -> 177
B205: 7 CFR 1777-Colonias | C205: (0575-0018) | D205: 19 | E205: 1 | F205: =SUM(D205*E205) -> 19 | G205: 0.25 | H205: =SUM(F205*G205) -> 5
B206: 7 CFR 1778-ECWAG | D206: 4 | E206: 1 | F206: =SUM(D206*E206) -> 4 | G206: 0.25 | H206: =SUM(F206*G206) -> 1
A208: 1780.33(a) | B208: Application for Federal Assistance | C208: SF 424 | D208: 829 | E208: 1 | F208: =SUM(D208*E208) -> 829 | G208: 1.00 | H208: =SUM(F208*G208) -> 829
B209: 7 CFR 1777-Colonias | C209: (4040-0004) | D209: 22 | E209: 1 | F209: =D209*E209 -> 22 | G209: 1.00 | H209: =F209*G209 -> 22
B210: 7 CFR 1778-ECWAG | D210: 5 | E210: 1 | F210: =D210*E210 -> 5 | G210: 1.00 | H210: =F210*G210 -> 5
A212: 1780.33(h)(1) | B212: Operating Budget | C212: RD 442-7 | D212: 707 | E212: 1 | F212: =SUM(D212*E212) -> 707 | G212: 5.00 | H212: =SUM(F212*G212) -> 3,535
B213: 7 CFR 1777-Colonias | C213: (0575-0015) | D213: 19 | E213: 1 | F213: =SUM(D213*E213) -> 19 | G213: 5.00 | H213: 95
B214: 7 CFR 1778-ECWAG | D214: 4 | E214: 1 | F214: =SUM(D214*E214) -> 4 | G214: 5.00 | H214: 20
A216: 1780.41(a)(3) | B216: Balance Sheet or Financial Statement | C216: RD 442-3 | D216: 707 | E216: 1 | F216: =SUM(D216*E216) -> 707 | G216: 1.00 | H216: 707
B217: 7 CFR 1777-Colonias | C217: (0575-0015) | D217: 19 | E217: 1 | F217: =SUM(D217*E217) -> 19 | G217: 1.00 | H217: 19
B218: 7 CFR 1778-ECWAG | D218: 4 | E218: 1 | F218: =SUM(D218*E218) -> 4 | G218: 1.00 | H218: 4
A220: 1780.29(b)(1) | B220: Agreement for Engineering Services | C220: 1942-19 | D220: 707 | E220: 1 | F220: =SUM(D220*E220) -> 707 | G220: 4.00 | H220: 2,828
B221: 7 CFR 1777-Colonias | C221: (0575-0015) | D221: 19 | E221: 1 | F221: =SUM(D221*E221) -> 19 | G221: 4.00 | H221: 76
B222: 7 CFR 1778-ECWAG | D222: 4 | E222: 1 | F222: =SUM(D222*E222) -> 4 | G222: 4.00 | H222: 16
A224: 1780.39(f) | B224: Resolution of Members or Stockholders | C224: RD 1942-8 | D224: 155 | E224: 1 | F224: 167 | G224: 1.00 | H224: 167
B225: 7 CFR 1777-Colonias | C225: (0575-0015) | D225: 8 | E225: 1 | F225: 13 | G225: 1.00 | H225: 13
B226: 7 CFR 1778-ECWAG | D226: 1 | E226: 1 | F226: 20 | G226: 1.00 | H226: 20
A228: 1780.41(a)(6) | B228: Letter of Intent to Meet Conditions | C228: RD 1942-46 | D228: 707 | E228: 1 | F228: =SUM(D228*E228) -> 707 | G228: 1.00 | H228: =SUM(F228*G228) -> 707
B229: 7 CFR 1777-Colonias | C229: (0575-0015) | D229: 19 | E229: 1 | F229: =SUM(D229*E229) -> 19 | G229: 1.00 | H229: =SUM(F229*G229) -> 19
B230: 7 CFR 1778-ECWAG | D230: 4 | E230: 1 | F230: =SUM(D230*E230) -> 4 | G230: 1.00 | H230: =SUM(F230*G230) -> 4
A232: 1780.44(g)(1)(i) | B232: Opinion of Counsel Relative to Right-of-Way and Easements | C232: RD 442-22 | D232: 707 | E232: 1 | F232: =SUM(D232*E232) -> 707 | G232: 1.00 | H232: =SUM(F232*G232) -> 707
B233: 7 CFR 1777-Colonias | C233: (0575-0015) | D233: 19 | E233: 1 | F233: =SUM(D233*E233) -> 19 | G233: 1.00 | H233: =SUM(F233*G233) -> 19
B234: 7 CFR 1778-ECWAG | D234: 4 | E234: 1 | F234: =SUM(D234*E234) -> 4 | G234: 1.00 | H234: =SUM(F234*G234) -> 4
A236: 1780.45(b)(1)(ii) | B236: Estimate of Funds Needed for 30-Day Period Commencing ____" | C236: RD 440-11 | D236: 707 | E236: 1 | F236: =SUM(D236*E236) -> 707 | G236: 1.00 | H236: =SUM(F236*G236) -> 707
B237: 7 CFR 1777-Colonias | C237: (0575-0015) | D237: 19 | E237: 1 | F237: =SUM(D237*E237) -> 19 | G237: 1.00 | H237: =SUM(F237*G237) -> 19
B238: 7 CFR 1778-ECWAG | D238: 4 | E238: 1 | F238: =SUM(D238*E238) -> 4 | G238: 1.00 | H238: =SUM(F238*G238) -> 4
A240: 1780.37(f) | B240: Statement of Budget, Income, and Equity | C240: RD 442-2 | D240: 707 | E240: 1 | F240: =SUM(D240*E240) -> 707 | G240: 2.50 | H240: =SUM(F240*G240) -> 1,768
B241: 7 CFR 1777-Colonias | C241: (0575-0015) | D241: 19 | E241: 1 | F241: =SUM(D241*E241) -> 19 | G241: 2.50 | H241: =SUM(F241*G241) -> 48
B242: 7 CFR 1778-ECWAG | D242: 4 | E242: 1 | F242: =SUM(D242*E242) -> 4 | G242: 2.50 | H242: =SUM(F242*G242) -> 10
A244: 1780.62 | B244: Water Purchase Contract | C244: RD 442-30 | D244: 167 | E244: 1 | F244: =SUM(D244*E244) -> 167 | G244: 1.00 | H244: =SUM(F244*G244) -> 167
B245: 7 CFR 1777-Colonias | C245: (0575-0015) | D245: 13 | E245: 1 | F245: =SUM(D245*E245) -> 13 | G245: 1.00 | H245: =SUM(F245*G245) -> 13
B246: 7 CFR 1778-ECWAG | D246: 1 | E246: 1 | F246: =SUM(D246*E246) -> 1 | G246: 1.00 | H246: =SUM(F246*G246) -> 1
A248: 1780.75 | B248: Certification of Contractor's Lease | C248: RD 1924-9 | D248: 707 | E248: 1 | F248: =SUM(D248*E248) -> 707 | G248: 0.25 | H248: =SUM(F248*G248) -> 177
B249: 7 CFR 1777 - Colonias | C249: (0575-0042) | D249: 19 | E249: 1 | F249: =SUM(D249*E249) -> 19 | G249: 0.25 | H249: =SUM(F249*G249) -> 5
B250: 7 CFR 1778 -ECWAG | D250: 4 | E250: 1 | F250: =SUM(D250*E250) -> 4 | G250: 0.25 | H250: =SUM(F250*G250) -> 1
A252: 1780.75 | B252: Release by Claimants | C252: RD 1924-10 | D252: 707 | E252: 1 | F252: =SUM(D252*E252) -> 707 | G252: 0.50 | H252: =SUM(F252*G252) -> 354
B253: 7 CFR 1777 - Colonias | C253: (0575-0042) | D253: 19 | E253: 1 | F253: =SUM(D253*E253) -> 19 | G253: 0.50 | H253: =SUM(F253*G253) -> 10
B254: 7 CFR 1778 -ECWAG | D254: 4 | E254: 1 | F254: =SUM(D254*E254) -> 4 | G254: 0.50 | H254: =SUM(F254*G254) -> 2
A256: 1780.76(f) | B256: Insepction Report | C256: RD 1924-12 | D256: 707 | E256: 3 | F256: =SUM(D256*E256) -> 2,121 | G256: 0.25 | H256: =SUM(F256*G256) -> 530
... 6 more rows

Sheet Sheet2

Sheet Sheet3
